bitfinex-derivatives/quotes_ETHF0:USTF0_20240922
["timestamp","ask_amount","ask_price","bid_price","bid_amount"]
[1726971363024,3.2078,2596.8,2596.6,3.26953]
[1726971363432,0.3728,2596.9,2596.6,3.26953]
[1726971363433,0.3728,2596.9,2596.6,3.26954]
[1726971363826,0.3728,2596.9,2596.6,3.26953]
[1726971364138,0.3728,2596.9,2596.7,0.26953]
[1726971364424,0.26947,2597.3,2596.9,0.2695]
[1726971364630,3.2078,2597.4,2596.8,3.7929]
[1726971364829,0.26947,2597.3,2596.9,0.2695]
[1726971365831,3.47726,2597.4,2596.9,0.2695]
[1726971366127,3.2078,2597.4,2596.8,3.7929]
[1726971366355,0.6735,2598.0,2596.8,3.7929]
[1726971366356,7.3308,2598.1,2597.3,3.0]
[1726971366628,0.26941,2597.9,2597.6,3.0]
[1726971366923,3.2078,2598.1,2597.6,3.0]
[1726971366924,0.2694,2598.0,2597.6,3.0]
[1726971367132,3.2078,2598.1,2597.6,3.0]
[1726971367324,0.2694,2598.0,2597.6,3.26943]
[1726971367524,3.2078,2598.1,2597.6,3.0]
[1726971367833,3.2078,2598.1,2597.6,3.26943]
[1726971368125,3.47719,2598.1,2597.6,3.26943]
[1726971368329,3.2078,2598.1,2597.6,3.0]
[1726971368533,3.2078,2597.8,2597.4,4.157]
[1726971368829,3.47724,2597.6,2597.1,5.648]
[1726971369130,0.26943,2597.6,2597.2,0.26948]
[1726971369329,0.66003,2597.7,2597.2,0.26948]
[1726971369537,0.3906,2597.7,2597.4,3.0]
[1726971370031,0.66002,2597.7,2597.4,3.0]
[1726971370332,0.3906,2597.7,2597.4,3.3783]
[1726971371033,0.66003,2597.7,2597.4,3.3783]
[1726971371229,0.26944,2597.6,2597.4,3.3783]
[1726971371531,0.66003,2597.7,2597.4,3.3783]
[1726971371734,1.04543,2597.7,2597.4,3.3783]
[1726971372323,0.776,2597.7,2597.4,3.3783]
[1726971372528,3.47722,2597.8,2597.4,3.3783]
[1726971372733,0.26943,2597.7,2597.4,3.3783]
[1726971373125,3.47722,2597.8,2597.4,3.64775]
[1726971373331,3.47722,2597.8,2597.4,3.3783]
[1726971373834,0.26944,2597.6,2597.4,3.3783]
[1726971374130,0.26944,2597.6,2597.4,0.3783]
[1726971374436,0.3934,2597.7,2597.4,3.3783]
[1726971374631,0.66283,2597.7,2597.4,3.3783]
[1726971375636,0.26943,2597.7,2597.4,3.3783]
[1726971375934,0.26942,2597.8,2597.6,3.0]
[1726971376330,3.47722,2597.8,2597.6,3.0]
[1726971376523,0.26943,2597.7,2597.4,3.3783]
[1726971376832,3.47722,2597.8,2597.4,3.64775]
[1726971377039,0.26941,2597.9,2597.6,3.0]
[1726971377221,1.0267,2598.0,2597.6,3.0]
[1726971377426,0.2694,2597.9,2597.6,3.0]
[1726971378838,1.0267,2598.0,2597.6,3.26943]
[1726971379031,0.3854,2598.0,2597.6,3.26943]
[1726971379234,0.65479,2598.0,2597.7,0.3767]
[1726971380237,0.3854,2598.0,2597.7,0.3767]
[1726971380436,0.65479,2598.0,2597.7,0.3767]
[1726971380735,0.3854,2598.0,2597.6,3.0]
[1726971380929,3.2078,2597.8,2597.6,3.0]
[1726971381129,3.47722,2597.8,2597.6,3.0]
[1726971381627,3.47722,2597.8,2597.4,0.64775]
[1726971381628,3.2078,2597.8,2597.4,0.3783]
[1726971381833,0.26944,2597.6,2597.4,0.3783]
[1726971382039,0.3853,2597.7,2597.4,0.3783]
[1726971382344,0.26944,2597.6,2597.4,0.3783]
[1726971385542,0.3853,2597.7,2597.4,0.3783]
[1726971385543,0.65473,2597.7,2597.4,0.3783]
[1726971385838,0.26944,2597.6,2597.4,0.3783]
[1726971386033,0.3853,2597.7,2597.4,0.64775]
[1726971386034,3.2078,2597.7,2597.4,0.64775]
[1726971386843,0.26942,2597.8,2597.4,0.64775]
[1726971387436,3.2078,2597.9,2597.6,3.26943]
[1726971387936,3.2078,2597.9,2597.7,0.26941]
[1726971388143,3.2078,2597.9,2597.8,3.26941]
[1726971388630,2.35756744,2598.3,2597.8,3.0]
[1726971388828,0.3901,2598.3,2598.1,3.26937]
[1726971389042,0.3901,2598.3,2598.1,3.0]
[1726971389237,4.2389,2598.3,2598.1,3.0]
[1726971389635,6.20636744,2598.3,2598.1,3.0]
[1726971390144,6.47573744,2598.3,2598.1,3.0]
[1726971390335,3.8488,2598.2,2598.0,0.3903]
[1726971390537,2.62693744,2598.3,2598.0,0.3903]
[1726971391632,0.26937,2598.2,2598.0,0.3903]
[1726971392741,2.35756744,2598.3,2597.8,3.0]
[1726971392938,0.26939,2598.1,2597.6,4.03133]
[1726971394152,0.26939,2598.1,2597.7,0.26942]
[1726971394336,0.3901,2598.3,2597.6,3.7619]
[1726971394337,3.2078,2597.9,2597.6,3.7619]
[1726971394534,3.2078,2597.9,2597.2,3.63447]
[1726971394740,0.26943,2597.7,2597.3,0.26946]
[1726971395045,0.26943,2597.7,2597.2,4.1318]
[1726971395046,5.84668744,2597.8,2597.2,4.1318]
[1726971395342,5.84668744,2597.8,2597.4,3.0]
[1726971395550,0.26943,2597.7,2597.4,3.0]
[1726971396143,2.36946744,2597.8,2597.4,3.0]
[1726971396339,5.84668744,2597.8,2597.4,3.0]
[1726971396639,0.26943,2597.7,2597.4,3.0]
[1726971397446,3.6098,2597.8,2597.4,3.0]
[1726971397447,0.67142,2597.8,2597.4,3.0]
[1726971397745,3.5821,2598.1,2597.6,3.0]
[1726971397746,3.2078,2598.1,2597.6,3.0]
[1726971397950,3.2078,2598.1,2597.4,3.2078]
[1726971397951,3.2078,2598.1,2597.9,3.0]
[1726971398142,3.2078,2598.1,2598.0,0.3705]
[1726971400241,3.47718,2598.1,2598.0,0.3705]
[1726971401332,3.2078,2598.1,2598.0,0.3705]
[1726971401848,3.47718,2598.1,2597.7,3.26941]
[1726971402846,3.47718,2598.1,2597.8,0.26941]
[1726971404939,3.2078,2598.1,2597.9,0.2694]
[1726971405140,3.2078,2598.1,2597.8,0.26941]
[1726971405949,3.47718,2598.1,2597.8,0.26941]
[1726971406444,3.47718,2598.1,2597.8,0.66461]
[1726971406945,1.96746744,2598.2,2598.0,3.0]
[1726971407141,1.96746744,2598.2,2598.0,3.26939]
[1726971407441,3.02162744,2598.3,2598.0,3.26939]
[1726971407644,2.75226744,2598.3,2598.0,3.0]
[1726971407843,3.02162744,2598.3,2598.0,3.0]
[1726971408048,3.2078,2598.1,2597.6,3.9845]
[1726971408345,5.17526744,2598.1,2597.6,3.9845]
[1726971408548,0.2694,2598.0,2597.6,3.9845]
[1726971408945,0.2694,2598.0,2597.6,1.04613]
[1726971409248,2.23686744,2598.0,2597.6,1.04613]
[1726971410143,2.23686744,2598.0,2597.7,0.26942]
[1726971410345,1.96746744,2598.0,2597.7,0.26942]
[1726971410544,1.96746744,2598.0,2597.6,0.7767]
[1726971411240,1.96746744,2598.0,2597.7,0.26942]
[1726971411441,2.23685744,2598.0,2597.7,0.26942]
[1726971411953,0.26939,2598.0,2597.7,0.99411147]
[1726971413951,0.2694,2597.9,2597.7,0.99411147]
[1726971414156,3.2078,2598.1,2597.6,1.77081147]
[1726971414355,3.84552,2597.8,2597.5,0.99411147]
[1726971414648,3.84552,2597.8,2597.4,1.76061721]
[1726971414649,3.84552,2597.8,2597.4,1.26356147]
[1726971414856,3.84552,2597.8,2597.5,0.99411147]
[1726971415153,3.84552,2597.8,2597.4,1.26356147]
[1726971415348,3.84552,2597.8,2597.5,0.99411147]
[1726971415549,3.84552,2597.8,2597.4,1.26356147]
[1726971415752,3.84552,2597.8,2597.5,0.99411147]
[1726971416349,0.3683,2597.8,2597.5,4.26355147]
[1726971416851,0.26943,2597.7,2597.5,3.99411147]
[1726971417052,0.26943,2597.6,2597.5,0.99411147]
[1726971417347,0.26944,2597.5,2597.3,5.12261147]
[1726971417549,3.2078,2597.5,2597.3,5.12261147]
[1726971417954,3.47725,2597.5,2597.3,5.12261147]
[1726971418153,3.2078,2597.5,2597.3,5.12261147]
[1726971419045,3.47725,2597.5,2597.3,5.12261147]
[1726971419652,3.2078,2597.5,2597.3,5.12261147]
[1726971420053,3.2078,2597.5,2597.3,4.1285]
[1726971420250,2.23690744,2597.6,2597.3,4.1285]
[1726971420448,3.2078,2597.5,2597.3,4.1285]
[1726971420648,2.23690744,2597.6,2597.3,4.1285]
[1726971420849,3.47725,2597.5,2597.3,4.1285]
[1726971421044,5.44471744,2597.5,2597.3,4.1285]
[1726971421358,5.44471744,2597.5,2597.3,3.7566]
[1726971421659,5.44471744,2597.5,2596.8,5.09611147]
[1726971421660,0.26952,2596.8,2596.6,0.99411147]
[1726971421955,0.26954,2596.6,2596.5,0.7388]
[1726971422144,3.8512,2596.6,2596.1,3.0]
[1726971422348,3.47736,2596.5,2596.1,3.7388]
[1726971422555,0.26956,2596.4,2596.1,3.7388]
[1726971422756,1.99456853,2596.6,2596.5,0.26955]
[1726971422949,5.20236853,2597.1,2596.4,3.2078]
[1726971423151,3.2078,2597.1,2597.0,3.2695]
[1726971423548,1.99456853,2597.4,2597.2,0.26947]
[1726971423751,2.49321067,2597.6,2597.4,3.0]
[1726971423752,1.99456853,2597.5,2597.4,3.0]
[1726971424664,1.99456853,2597.5,2597.3,0.3783]
[1726971425150,2.26401853,2597.5,2597.3,0.3783]
[1726971425654,0.26945,2597.4,2597.0,3.2078]
[1726971425956,3.2078,2597.4,2597.0,3.2078]
[1726971426161,3.47726,2597.4,2597.0,3.47729]
[1726971426357,0.26946,2597.4,2597.0,3.47729]
[1726971427257,3.47726,2597.4,2597.0,3.47729]
[1726971427454,0.3706,2597.7,2597.3,0.26947]
[1726971427455,3.5784,2597.7,2597.3,0.26947]
[1726971427760,3.5784,2597.7,2597.4,0.3905]
[1726971428550,3.84783,2597.7,2597.4,0.3905]
[1726971428753,5.20236853,2598.1,2597.6,3.0]
[1726971428956,3.2078,2598.1,2598.0,3.0]
[1726971431763,3.2078,2598.1,2597.9,0.3723]
[1726971432567,3.2078,2598.1,2597.9,0.6417]
[1726971433864,0.26935,2598.4,2597.9,0.6417]
[1726971434361,0.26937,2598.3,2597.9,0.6417]
[1726971434965,2.26393853,2598.3,2597.9,0.6417]
[1726971436562,2.26393853,2598.3,2597.9,0.3723]
[1726971436762,2.26393853,2598.3,2597.9,0.6417]
[1726971436963,2.26393853,2598.3,2598.0,0.3734]
[1726971437166,3.2078,2598.2,2598.0,0.3734]
[1726971439771,3.2078,2598.2,2597.6,5.658]
[1726971439772,3.8488,2598.1,2597.6,5.658]
[1726971439973,0.2694,2598.0,2597.6,3.64603]
[1726971440265,3.2078,2597.9,2597.4,0.3898]
[1726971440481,6.34616853,2597.9,2597.4,0.3898]
[1726971440659,0.26942,2597.7,2597.4,0.3898]
[1726971440864,0.26942,2597.8,2597.4,0.65925]
[1726971441073,6.34616853,2597.9,2597.4,0.65925]
[1726971441274,0.26943,2597.7,2597.4,0.3898]
[1726971443259,4.62101,2597.9,2597.6,3.0]
[1726971443861,0.26941,2597.8,2597.4,3.65925]
[1726971444076,0.26942,2597.7,2597.4,3.65925]
[1726971444271,0.26942,2597.7,2597.4,3.3898]
[1726971444575,4.3516,2597.9,2597.4,3.65925]
[1726971444576,0.26942,2597.8,2597.4,3.65925]
[1726971444873,0.26942,2597.7,2597.4,3.3898]
[1726971445172,0.26943,2597.7,2597.4,3.3898]
[1726971447672,4.3516,2597.9,2597.4,0.3898]
[1726971447860,6.2078,2597.5,2596.8,0.99411147]
[1726971448062,3.2078,2596.9,2596.6,0.3802]
[1726971448281,0.26953,2596.7,2596.6,0.3802]
[1726971448573,0.26953,2596.7,2596.5,0.3851]
[1726971449167,0.26953,2596.7,2596.3,3.3802]
[1726971451264,1.1604,2596.8,2596.3,3.64977]
[1726971451470,0.26953,2596.7,2596.3,3.3802]
[1726971453077,1.03992,2596.8,2596.3,3.64976]
[1726971453670,0.26953,2596.7,2596.3,3.3802]
[1726971454477,0.3925,2596.8,2596.3,3.3802]
[1726971454874,0.3925,2596.8,2596.4,0.3823]
[1726971455070,0.26953,2596.7,2596.4,0.3823]
[1726971456079,0.26954,2596.6,2596.3,3.3802]
[1726971456776,0.3824,2596.7,2596.3,3.3802]
[1726971456777,0.65193,2596.7,2596.3,3.3802]
[1726971458076,0.65193,2596.7,2596.3,3.64977]
[1726971458281,0.65193,2596.7,2596.3,3.3802]
[1726971460377,0.26956,2596.4,2596.3,0.3802]
[1726971460579,8.11465,2596.6,2595.8,6.2078]
[1726971460782,0.26959,2596.2,2595.9,0.7857]
[1726971461577,0.26958,2596.3,2595.9,0.7857]
[1726971462772,6.92245,2596.6,2595.9,0.7857]
[1726971463075,3.2078,2596.0,2595.6,3.3931]
[1726971463271,3.2078,2596.3,2595.6,3.7814]
[1726971463475,3.4774,2596.0,2595.6,4.05104]
[1726971464684,3.4774,2596.0,2595.6,3.7814]
[1726971465181,3.4774,2596.0,2595.1,3.65311147]
[1726971465182,0.67403,2595.9,2595.3,3.0]
[1726971465479,0.26965,2595.6,2595.3,3.0]
[1726971465684,3.2078,2596.0,2595.5,3.0]
[1726971465882,3.88182,2596.0,2595.3,3.0]
[1726971466682,0.26964,2595.7,2595.3,3.0]
[1726971467079,0.26964,2595.6,2595.2,1.05558]
[1726971467279,3.88182,2596.0,2595.2,1.05558]
[1726971467280,3.47744,2595.7,2595.2,1.05558]
[1726971467477,0.67402,2596.0,2595.2,1.05558]
[1726971467478,0.26965,2595.6,2595.2,1.05558]
[1726971467785,0.26964,2595.7,2595.2,1.05558]
[1726971468383,0.26964,2595.6,2595.2,1.05558]
[1726971469581,0.26964,2595.6,2595.2,0.7859]
[1726971469887,0.26964,2595.7,2595.2,0.7859]
[1726971470081,0.26964,2595.7,2595.2,1.05558]
[1726971470893,0.26964,2595.6,2595.2,0.7859]
[1726971471087,0.26965,2595.5,2595.2,0.7859]
[1726971471893,0.26967,2595.3,2595.2,0.3883]
[1726971472689,0.2697,2595.0,2594.9,0.3936]
[1726971472892,0.26969,2595.1,2594.9,0.3936]
[1726971473481,0.7666,2595.7,2595.0,6.8536]
[1726971473789,3.2078,2595.8,2594.9,0.3936]
[1726971473790,3.2078,2595.8,2595.7,0.26963]
[1726971474087,3.2078,2595.8,2595.5,3.0]
[1726971474284,3.2078,2595.8,2595.6,1.1812]
[1726971474782,3.2078,2595.8,2595.6,0.7904]
[1726971474783,3.47743,2595.8,2595.6,0.7904]
[1726971474982,0.26963,2595.7,2595.6,0.7904]
[1726971477686,0.26963,2595.7,2595.6,0.3968]
[1726971479292,0.26963,2595.7,2595.3,0.7475]
[1726971479293,0.26965,2595.6,2595.3,0.7475]
[1726971479494,3.2078,2595.8,2595.3,1.127]
[1726971479696,0.26965,2595.5,2595.3,1.127]
[1726971479995,3.2078,2595.8,2595.3,1.127]
[1726971479996,0.26966,2595.4,2595.3,0.7594]
[1726971480789,0.26967,2595.3,2595.2,3.2078]
[1726971481793,0.26967,2595.3,2595.0,0.7703]
[1726971482189,0.26967,2595.3,2595.0,1.04]
[1726971482384,0.26967,2595.4,2595.0,1.04]
[1726971482590,0.26967,2595.3,2595.0,1.04]
[1726971482790,0.26969,2595.2,2595.0,0.7703]
[1726971482991,0.26969,2595.1,2595.0,0.7703]
[1726971483199,3.47749,2595.2,2595.0,0.7703]
[1726971483397,0.26969,2595.1,2595.0,0.7703]
[1726971485209,0.26969,2595.1,2595.0,0.3795]
[1726971485406,0.26971,2595.0,2594.7,0.3805]
[1726971485702,0.26971,2595.0,2594.7,0.7481]
[1726971485912,0.26972,2594.8,2594.7,0.7481]
[1726971487429,0.26974,2594.7,2594.2,0.26979]
[1726971487705,0.26974,2594.7,2594.3,0.26977]
[1726971488304,1.05053,2594.8,2594.3,0.26977]
[1726971488707,0.26978,2594.3,2594.2,1.1921]
[1726971488902,3.47758,2594.3,2594.2,0.7912]
[1726971489103,0.26978,2594.3,2594.2,0.7912]
[1726971489807,3.6044,2594.4,2593.6,3.47764]
[1726971490112,0.2698,2594.1,2593.8,0.3929]
[1726971490521,0.26979,2594.2,2593.8,0.3929]
[1726971490909,0.26979,2594.2,2593.9,0.3706]
[1726971492105,3.6044,2594.4,2593.8,0.3929]
[1726971492106,0.26978,2594.3,2593.8,0.66273]
[1726971492408,3.6044,2594.4,2593.8,0.66272]
[1726971492707,0.26979,2594.3,2593.8,1.05892]
[1726971493014,3.2078,2594.4,2593.9,3.0]
[1726971493204,3.2078,2594.4,2594.1,0.26979]
[1726971493405,3.2078,2594.4,2593.9,3.0]
[1726971493912,3.2078,2594.4,2594.2,0.26978]
[1726971494109,3.2078,2594.4,2594.3,1.1622]
[1726971494312,7.0622,2594.4,2593.7,3.0]
[1726971494607,3.2078,2594.4,2594.1,0.2698]
[1726971494908,3.2078,2594.4,2594.2,0.3667]
[1726971495103,3.2078,2594.4,2594.2,0.63648]
[1726971496206,3.2078,2594.4,2594.2,0.3667]
[1726971496515,3.2078,2594.4,2594.2,0.63648]
[1726971496816,3.2078,2594.4,2594.3,0.26978]
[1726971497306,3.2078,2594.4,2594.2,0.63648]
[1726971497902,3.2078,2594.4,2594.2,0.3667]
[1726971498307,0.26978,2594.3,2594.2,0.3667]
[1726971498910,0.2698,2594.1,2594.0,0.3993]
[1726971499113,3.2078,2594.1,2594.0,0.3993]
[1726971499415,0.26979,2594.2,2594.0,0.3993]
[1726971500310,0.2698,2594.1,2594.0,0.3993]
[1726971500508,3.4776,2594.1,2593.7,0.64043]
[1726971500708,3.2078,2594.1,2593.7,1.01463]
[1726971501101,0.3776,2594.0,2593.7,1.01463]
[1726971502011,0.3776,2594.0,2593.7,0.7448]
[1726971502012,0.26982,2593.9,2593.7,0.7448]
[1726971502516,0.3776,2594.0,2593.7,0.7448]
[1726971502517,0.26983,2593.8,2593.7,0.7448]
[1726971503512,0.26983,2593.8,2593.7,0.3742]
[1726971503816,0.26983,2593.8,2593.2,0.3962]
[1726971503817,3.2078,2593.8,2593.2,0.3962]
[1726971504007,3.2078,2593.8,2593.4,0.3762]
[1726971504214,0.26986,2593.6,2593.4,0.3762]
[1726971504610,0.26985,2593.6,2593.4,0.3762]
[1726971504914,0.26986,2593.5,2593.4,0.3762]
[1726971505119,3.2078,2593.5,2593.4,0.3762]
[1726971505505,3.47766,2593.5,2593.4,0.3762]
[1726971506017,3.2078,2593.5,2593.4,0.3762]
[1726971506713,3.2078,2593.5,2592.6,3.2078]
[1726971506714,0.26988,2593.4,2592.6,3.2078]
[1726971506917,0.26988,2593.4,2593.0,0.3816]
[1726971507413,0.26988,2593.4,2593.0,0.65151]
[1726971508115,0.26988,2593.4,2592.6,6.2078]
[1726971508116,3.856,2593.4,2592.6,3.2078]
[1726971508320,3.4777,2593.2,2592.8,0.26993]
[1726971509411,0.2699,2593.1,2592.7,0.65154]
[1726971511815,3.8459,2593.2,2592.7,0.65154]
[1726971512325,0.2699,2593.1,2592.7,0.65154]
[1726971513221,0.6577,2593.1,2592.7,0.65154]
[1726971514120,0.26991,2593.0,2592.7,0.65154]
[1726971514521,0.26991,2593.0,2592.7,0.3816]
[1726971514733,0.26991,2593.0,2592.7,0.65154]
[1726971514925,0.65771,2593.1,2592.7,0.65154]
[1726971515126,3.2078,2593.2,2593.1,0.2699]
[1726971515426,3.2078,2593.2,2592.8,0.398]
[1726971515726,3.2078,2593.2,2593.1,0.2699]
[1726971516118,1.183,2593.8,2593.1,0.2699]
[1726971516119,3.6066,2593.8,2593.1,6.856]
[1726971516320,3.2078,2594.1,2593.3,6.2078]
[1726971516525,3.2078,2594.1,2593.8,0.26983]
[1726971516725,3.2078,2594.1,2593.9,1.04812]
[1726971516913,3.2078,2594.1,2593.9,0.7783]
[1726971517120,6.2078,2594.1,2593.9,0.7783]
[1726971517316,6.47761,2594.1,2593.9,0.375]
[1726971517528,0.26981,2594.0,2593.9,0.375]
[1726971518823,0.26981,2594.0,2593.5,0.3801]
[1726971518824,0.26983,2593.8,2593.5,0.3801]
[1726971519019,3.26983,2593.8,2593.5,0.3801]
[1726971519220,3.0,2593.8,2593.5,0.3801]
[1726971519523,6.2078,2593.8,2593.5,0.3801]
[1726971519828,0.26985,2593.7,2593.5,0.3801]
[1726971520129,6.2078,2594.1,2593.5,0.3801]
[1726971520331,6.2078,2594.1,2593.6,0.26984]
[1726971520332,0.26981,2594.0,2593.6,0.26984]
[1726971521022,0.26981,2594.0,2593.5,0.64995]
[1726971522938,3.2078,2594.1,2593.5,0.3801]
[1726971523430,3.2078,2594.1,2593.9,0.26981]
[1726971523632,3.2078,2594.1,2594.0,0.8045]
[1726971524318,3.2078,2594.1,2593.4,3.0398]
[1726971524518,3.2078,2594.1,2593.6,0.26984]
[1726971524519,3.47761,2594.1,2593.6,0.26984]
[1726971524722,3.47761,2594.1,2593.7,0.26984]
[1726971525129,0.26981,2594.0,2593.6,0.26984]
[1726971525338,3.26981,2594.0,2593.6,0.26984]
[1726971526931,0.26982,2593.9,2593.5,1.07375]
[1726971527131,0.26982,2593.9,2593.6,0.26985]
[1726971527433,3.0,2594.0,2593.3,3.2078]
[1726971527434,6.2078,2593.8,2593.3,3.2078]
[1726971527633,7.60234,2593.8,2593.4,0.26987]
[1726971527828,3.5724,2593.8,2593.6,0.26985]
[1726971528031,3.2078,2593.8,2593.7,0.373]
[1726971528226,3.2078,2593.8,2593.7,0.7636]
[1726971528532,0.26985,2593.7,2593.3,3.47768]
[1726971528837,10.063,2593.8,2593.3,3.47768]
[1726971528838,6.2078,2593.8,2593.4,0.373]
[1726971529638,0.26984,2593.7,2593.4,0.373]
[1726971529833,6.2078,2593.8,2593.4,0.64287]
[1726971530135,3.0,2593.8,2593.5,0.26985]
[1726971530526,3.0,2593.8,2593.6,0.3743]
[1726971531234,3.26983,2593.8,2593.6,0.3743]
[1726971531440,0.26984,2593.7,2593.6,0.3743]
[1726971531738,0.26984,2593.7,2593.4,0.373]
[1726971532039,0.26984,2593.7,2593.4,0.7473]
[1726971532950,6.2078,2593.8,2593.4,0.7473]
[1726971533236,6.2078,2593.8,2593.1,3.2078]
[1726971533438,3.0,2593.6,2593.2,0.3815]
[1726971533732,0.26987,2593.4,2593.2,0.3815]
[1726971534129,0.26988,2593.3,2593.1,0.3987]
[1726971534536,0.26989,2593.3,2593.1,0.3987]
[1726971534729,0.26987,2593.4,2593.1,0.3987]
[1726971535043,0.26988,2593.3,2593.1,0.3987]
[1726971535630,0.26987,2593.4,2593.1,0.3987]
[1726971537030,4.0137,2593.5,2593.1,0.3987]
[1726971537233,0.26989,2593.3,2593.1,0.3987]
[1726971537535,0.26989,2593.2,2593.1,0.3987]
[1726971537835,0.26989,2593.2,2593.0,0.3815]
[1726971538036,4.0137,2593.5,2593.0,0.65141]
[1726971538037,0.26988,2593.4,2593.0,0.65141]
[1726971538539,0.26989,2593.2,2593.0,0.3815]
[1726971538943,3.0,2593.4,2593.0,0.3815]
[1726971539135,3.0,2593.4,2592.6,1.49116721]
[1726971539136,0.26992,2592.9,2592.6,0.99411147]
[1726971539338,0.26992,2592.9,2592.6,0.3912]
[1726971539643,0.26993,2592.8,2592.6,0.3912]
[1726971540240,0.787,2593.0,2592.6,0.3912]
[1726971540448,3.0,2592.9,2592.6,0.3912]
[1726971541142,0.26994,2592.8,2592.6,0.3912]
[1726971541335,3.26993,2592.9,2592.6,0.3912]
[1726971541531,0.26993,2592.8,2592.4,0.3918]
[1726971541740,3.26993,2592.9,2592.5,0.66116]
[1726971542236,3.0,2592.9,2592.5,0.66116]
[1726971543534,0.26994,2592.8,2592.5,0.3912]
[1726971543739,0.26994,2592.7,2592.5,0.3912]
[1726971544043,0.26994,2592.7,2592.4,3.5996]
[1726971544436,3.2078,2592.8,2592.5,0.26996]
[1726971544437,0.26994,2592.8,2592.5,0.26996]
[1726971544642,0.26994,2592.8,2592.4,3.5996]
[1726971544643,0.26994,2592.8,2592.4,3.86957]
[1726971544951,3.47774,2592.8,2592.4,3.86957]
[1726971545850,3.47774,2592.8,2592.4,0.66177]
[1726971546039,0.26994,2592.8,2592.4,0.66177]
[1726971546346,3.0,2592.7,2592.2,0.99411147]
[1726971546542,3.402,2592.7,2592.3,0.3656]
[1726971546747,0.26997,2592.5,2592.3,0.3656]
[1726971546936,6.2078,2592.5,2592.0,0.99411147]
[1726971547137,3.0,2592.3,2592.0,0.3656]
[1726971547337,3.8702,2592.2,2591.8,0.63493]
[1726971547538,3.8702,2592.2,2591.8,0.3649]
[1726971547843,0.27001,2592.1,2591.8,0.3649]
[1726971548541,3.6002,2592.2,2591.8,0.63494]
[1726971548542,4.253,2592.2,2591.8,0.63494]
[1726971549050,4.253,2592.2,2591.8,0.3649]
[1726971549051,0.27001,2592.1,2591.8,0.3649]
[1726971549240,0.27001,2592.1,2591.8,0.63494]
[1726971549441,3.983,2592.2,2591.8,0.63494]
[1726971549442,4.253,2592.2,2591.8,0.63494]
[1726971550043,3.983,2592.2,2591.9,0.27002]
[1726971550445,3.983,2592.2,2591.8,0.3649]
[1726971550649,3.0,2592.0,2591.8,0.3649]
[1726971550844,3.27003,2592.0,2591.8,0.3649]
[1726971551043,3.0,2592.0,2591.8,0.3649]
[1726971551244,3.2078,2591.9,2591.6,0.3656]
[1726971551550,3.0,2591.8,2591.6,0.3656]
[1726971551847,3.64254,2591.8,2591.6,0.3656]
[1726971552040,0.27005,2591.7,2591.6,0.3656]
[1726971552952,3.3725,2591.8,2591.6,0.3656]
[1726971552953,3.64254,2591.8,2591.6,0.3656]
[1726971553147,0.3725,2591.8,2591.6,0.3656]
[1726971553647,3.8584,2591.7,2591.0,4.20191147]
[1726971553853,3.0,2591.5,2591.2,0.27009]
[1726971554040,3.0,2591.5,2591.0,3.9947]
[1726971554041,3.0,2591.5,2591.3,0.27009]
[1726971554251,2.634,2591.6,2591.4,0.27008]
[1726971554448,2.634,2591.6,2591.3,0.27008]
[1726971554652,2.634,2591.6,2591.0,3.9947]
[1726971554854,3.0,2591.5,2591.0,3.9947]
[1726971555040,3.0,2591.5,2591.1,0.27011]
[1726971555041,3.27007,2591.5,2591.1,0.27011]
[1726971555543,3.27007,2591.5,2591.0,1.05701]
[1726971555544,0.27008,2591.4,2591.0,1.05701]
[1726971555739,1.05228,2591.4,2591.0,1.05701]
[1726971556153,0.7822,2591.4,2591.0,1.05701]
[1726971556554,0.7822,2591.4,2591.1,0.27011]
[1726971557557,1.05228,2591.4,2591.0,1.05702]
[1726971557747,0.7822,2591.4,2591.0,3.9947]
[1726971557947,3.2078,2591.6,2591.0,3.9947]
[1726971558149,3.5836,2591.6,2591.0,0.7869]
[1726971558354,3.2078,2591.6,2591.1,0.27011]
[1726971558654,3.2078,2591.6,2591.4,0.27007]
[1726971558958,3.2078,2591.6,2591.5,0.3689]
[1726971559350,3.2078,2591.6,2591.2,0.27009]
[1726971559851,3.2078,2591.6,2591.3,0.27008]
[1726971560251,3.0,2591.5,2591.2,0.2701]
[1726971560450,3.0,2591.5,2591.2,0.27009]
[1726971560857,3.27007,2591.5,2591.1,0.63901]
[1726971561256,0.3796,2591.4,2591.1,0.63901]
[1726971563550,0.64968,2591.4,2591.1,0.3689]
[1726971564258,0.27009,2591.3,2591.1,0.3689]
[1726971564664,3.0,2591.3,2591.1,0.3689]
[1726971567465,3.27009,2591.3,2591.1,0.3689]
[1726971567659,3.0,2591.3,2590.5,4.102]
[1726971567862,3.0,2591.3,2590.7,0.744]
[1726971567863,3.27012,2591.1,2590.7,0.744]
[1726971568059,3.27012,2591.1,2590.8,0.27013]
[1726971568060,3.0,2591.1,2590.8,0.27013]
[1726971568259,0.27011,2591.2,2590.9,0.27013]
[1726971568456,2.90511,2591.2,2590.8,0.27014]
[1726971568762,2.90511,2591.2,2590.9,0.27013]
[1726971568958,0.2701,2591.2,2590.8,0.27013]
[1726971569363,6.2078,2591.3,2590.9,0.27012]